Cogmind - Beta 16.1 @@@ ROGUE MODE // 2026.02.19 @ 00:50:18 Player: Ceorik Result: Destroyed by P-70 Sage with High-powered Shock Rifle Performance ------------- Evolutions (5) 2500 Regions Visited (12) 2400 Robots Destroyed (24) 120 Value Destroyed (736) 736 Prototype IDs (17) 340 Alien Tech Used (0) 0 Bonus (1177) 1177 TOTAL SCORE: 7273 Bonus ------- Follower Combat Kills 177 Met Warlord at Base 500 MAIN.C Attacked Warlord 500 Cogmind --------- Core Integrity 0/1000 Matter 296/300 Energy 100/100 System Corruption 19% Temperature Cool (0) Movement Core (50) Location -4/Proximity Caves Parts ------- > --- POWER (2) -------- (None) > --- PROPULSION (5) --- (None) > --- UTILITY (7) ------ Improved Signal Interpreter > --- WEAPON (3) ------- (None) > --- INVENTORY (5) ---- Makeshift Cloaking Device Light Armor Plating V3-11A's Pendant Peak State ------------ > --- POWER ------------ Cold Fusion Reactor Antimatter Reactor > --- PROPULSION ------- Nuclear Pulse Thruster Flightbrick > --- UTILITY ---------- Small Storage Unit Weight Redist. System Gravity Neutralizer Improved Signal Interpreter Makeshift Cloaking Device Improved Propulsion Shielding Improved Utility Shielding Hacking Suite Hacking Suite System Shield > --- WEAPON ----------- Improved Datajack Katana Katana > --- INVENTORY -------- Combat Gravmag System Nuclear Pulse Thruster Makeshift Cloaking Device Improved Propulsion Shielding Improved Propulsion Shielding Improved Utility Shielding V3-11A's Pendant [Rating: 97] Favorites ----------- Power Heavy Ion Engine Engine Heavy Ion Engine Power Core Light Nuclear Core Reactor Cold Fusion Reactor Propulsion Flightbrick Leg Makeshift Leg Wheel Subdweller Monowheel Hover Unit Combat Gravmag System Flight Unit Flightbrick Utility Small Storage Unit Device Weight Redist. System Storage Small Storage Unit Processor Improved Signal Interpreter Hackware Hacking Suite Protection Light Armor Plating Weapon Ripper Energy Gun Small Laser Ballistic Gun Assault Rifle Launcher Grenade Launcher Slashing Weapon Ripper Special Melee Weapon Improved Datajack Build | -11 -10 -10 -8 -7 -6 -6 -6 -5 -5 -5 -5 -4 ------- Run | Yrd Mat Sub Mat Fac Fac Low Low Fac Upp Upp War Pro Slots Evolved 10 | . . . 4 2 2 . . 2 . . . . Power 1 | . . . . 1 . . . . . . . . Propulsion 3 | . . . 2 . . . . 1 . . . . Utility 5 | . . . 2 1 2 . . . . . . . Weapon 1 | . . . . . . . . 1 . . . . Parts Attached 47 | 7 1 10 7 6 3 . . 4 1 . 4 4 Power 8 | 1 . 2 2 1 1 . . . . . 1 . Engine 5 | 1 . 2 1 1 . . . . . . . . Core 1 | . . . 1 . . . . . . . . . Reactor 2 | . . . . . 1 . . . . . 1 . Propulsion 8 | 2 . 2 1 . . . . 1 . . . 2 Treads . | . . . . . . . . . . . . . Leg 3 | 2 . 1 . . . . . . . . . . Wheel 1 | . . 1 . . . . . . . . . . Hover 2 | . . . . . . . . . . . . 2 Flight 2 | . . . 1 . . . . 1 . . . . Utility 22 | 2 1 3 3 4 2 . . 1 1 . 3 2 Device 8 | 1 . 2 . 2 1 . . 1 . . 1 . Storage 1 | 1 . . . . . . . . . . . . Processor 2 | . 1 . 1 . . . . . . . . . Hackware 3 | . . . . 2 . . . . . . 1 . Protection 8 | . . 1 2 . 1 . . . 1 . 1 2 Artifact . | . . . . . . . . . . . . . Weapon 9 | 2 . 3 1 1 . . . 2 . . . . Energy Gun 2 | 1 . 1 . . . . . . . . . . Energy Cannon . | . . . . . . . . . . . . . Ballistic Gun 2 | 1 . . 1 . . . . . . . . . Ballistic Cannon . | . . . . . . . . . . . . . Launcher 1 | . . 1 . . . . . . . . . . Special Weapon . | . . . . . . . . . . . . . Impact Weapon . | . . . . . . . . . . . . . Slashing Weapon 3 | . . 1 . . . . . 2 . . . . Piercing Weapon . | . . . . . . . . . . . . . Special Melee Weapon 1 | . . . . 1 . . . . . . . . Unidentified Prototypes 4 | . . 1 1 . 1 . . 1 . . . . Parts Lost 22 | . . 3 . . . . . . 1 . . 18 Power 2 | . . . . . . . . . . . . 2 Propulsion 6 | . . 2 . . . . . . . . . 4 Utility 10 | . . . . . . . . . 1 . . 9 Weapon 4 | . . 1 . . . . . . . . . 3 Highest Loss Streak 9 | . . 1 . . . . . . 1 . . 9 To Critical Strikes . | . . . . . . . . . . . . . Average Backups 5 | . 2 4 7 6 7 8 8 4 5 5 7 5 Power . | . . 1 1 1 . 1 1 . . . . . Propulsion 1 | . . . . . 1 2 2 1 2 2 1 1 Utility 2 | . 1 . 1 2 2 3 3 2 3 3 5 4 Weapon 1 | . . 1 3 2 2 2 2 . . . . . Tool/Special . | . . . . . . . . . . . . . Unused Backups 13 | . . 3 2 1 5 . . . . . 1 1 Power . | . . . . . . . . . . . . . Propulsion 1 | . . . . . . . . . . . 1 . Utility 3 | . . . . . 2 . . . . . . 1 Weapon 7 | . . 2 1 1 3 . . . . . . . Tool/Special 2 | . . 1 1 . . . . . . . . . Average Slot Usage (%) 81 | . 100 85 45 64 74 77 77 84 84 85 84 58 Engine 9 | . 14 14 5 4 5 5 5 5 5 5 5 3 Reactor 1 | . . . . . . . . 4 5 5 5 2 Leg 5 | . 28 10 . . . . . . . . . . Wheel 1 | . . 3 . . . . . . . . . . Flight 3 | . . . 6 6 5 5 5 10 10 10 10 6 Device 11 | . 10 8 . 7 13 16 16 19 20 20 15 10 Storage 9 | . 14 13 7 6 5 5 5 5 5 5 5 4 Processor 5 | . 3 5 5 6 5 5 5 5 5 5 5 5 Hackware 5 | . . . . 5 11 11 11 10 10 10 14 10 Protection 4 | . . . 5 12 11 11 11 10 9 10 9 7 Energy Gun 7 | . 14 14 3 . . . . . . . . . Ballistic Gun 1 | . 14 1 1 . . . . . . . . . Slashing Weapon 8 | . . 10 7 6 5 5 5 9 10 10 10 4 Special Melee Weapon 2 | . . . . 2 5 5 5 5 5 5 5 2 Peak Build Rating 97 | 7 7 21 53 69 78 75 75 92 93 93 97 94 Average Rating 45 | 4 7 15 50 60 71 74 75 90 92 93 92 63 On Entrance 57 | . 7 7 18 51 69 75 75 75 92 93 93 94 Avg Prop Armor Cover (%) 10 | . . 6 . . . . . . . . . 26 Naked Turns . | . . . . . . . . . . . . . Heaviest Build 38 | 14 14 15 22 29 32 30 30 38 37 36 36 35 Greatest Support 42 | 20 20 30 24 30 30 30 30 42 42 42 42 42 Greatest Overweight (x) 4 | 2 . 4 . . 1 . . . . . . 1 Average Overweight (x) . | . . . . . . . . . . . . . Largest Inventory Capacity 8 | 8 8 8 8 8 8 8 8 8 8 8 8 8 Average Capacity 7 | 7 8 7 8 8 8 8 8 8 8 8 8 7 Most Carried 8 | 3 5 8 8 8 8 8 8 7 6 5 8 8 Average Carried 6 | . 3 6 7 6 7 7 8 4 5 5 7 5 Final Capacity 8 | 8 8 8 8 8 8 8 8 8 8 8 8 5 Final Carried 8 | . 5 8 8 6 8 8 8 6 5 5 8 3 Class Distribution -------------------- 58% | Mutant 41% | Hacker-Mutant Dominant Class ---------------- Mutant | -10/Materials Mutant | -10/Subcaves Mutant | -8/Materials Hacker-Mutant | -7/Factory Hacker-Mutant | -6/Factory Hacker-Mutant | -6/Lower Caves Hacker-Mutant | -6/Lower Caves Hacker-Mutant | -5/Factory Hacker-Mutant | -5/Upper Caves Hacker-Mutant | -5/Upper Caves Hacker-Mutant | -5/Warlord Hacker-Mutant | -4/Proximity Caves Resources | -11 -10 -10 -8 -7 -6 -6 -6 -5 -5 -5 -5 -4 ----------- Run | Yrd Mat Sub Mat Fac Fac Low Low Fac Upp Upp War Pro Matter Collected 889 | 214 36 269 60 23 . 36 81 80 4 . 66 20 Remotely . | . . . . . . . . . . . . . Salvage Created 848 | 22 36 179 135 78 23 . 81 185 26 . . 83 Parts 58 | 5 . 19 9 5 3 . 5 5 . . . 7 Haulers Intercepted . | . . . . . . . . . . . . . Recyclers Shooed . | . . . . . . . . . . . . . Parts Field Recycled . | . . . . . . . . . . . . . Retrieved Matter . | . . . . . . . . . . . . . Parts Self-Destructed 29 | . . 17 . . . . 5 . . . . 7 Prevented . | . . . . . . . . . . . . . Parts Restored . | . . . . . . . . . . . . . Kills | -11 -10 -10 -8 -7 -6 -6 -6 -5 -5 -5 -5 -4 ------- Run | Yrd Mat Sub Mat Fac Fac Low Low Fac Upp Upp War Pro Combat Hostiles Destroyed 18 | . 1 7 3 1 . . 1 1 1 . . 3 Melee 10 | . . . 3 1 . . 1 1 1 . . 3 Guns 5 | . 1 4 . . . . . . . . . . AOE 3 | . . 3 . . . . . . . . . . Classes Destroyed 8 | 1 1 2 1 1 . . . 2 . . . . Tunneler 2 | 2 . . . . . . . . . . . . Recycler 1 | . . . . . . . . 1 . . . . Operator 2 | . . . . 1 1 . . . . . . . Watcher 1 | . . . . . . . . 1 . . . . Swarmer 8 | . . 3 . . . . . 1 1 . . 3 Grunt 4 | . 1 . 2 1 . . . . . . . . Sentry 2 | . . . 1 . . . 1 . . . . . Subdweller 4 | . . 4 . . . . . . . . . . Best Kill Streak 3 | 2 1 2 1 1 1 . 1 1 1 . . 3 Combat Bots Only 3 | . 1 2 1 1 . . 1 1 1 . . 3 Max Kills in Single Turn 2 | 2 1 2 1 1 1 . 1 1 1 . . 1 Gunslinging . | . . . . . . . . . . . . . Exploded 1 | . . 1 . . . . . . . . . . Melee 1 | . . . 1 1 . . 1 1 1 . . 1 Uniques/NPCs Destroyed . | . . . . . . . . . . . . . Combat | -11 -10 -10 -8 -7 -6 -6 -6 -5 -5 -5 -5 -4 -------- Run | Yrd Mat Sub Mat Fac Fac Low Low Fac Upp Upp War Pro Hostile Shots Fired 575 | . 5 49 19 8 27 33 19 23 69 2 17 304 Missed 264 | . 1 19 10 1 19 23 11 10 35 2 9 124 Hits 311 | . 4 30 9 7 8 10 8 13 34 . 8 180 Melee 1 | . . . . . . . . . . . . 1 Projectile 310 | . 4 30 9 7 8 10 8 13 34 . 8 179 AOE 1 | . . 1 . . . . . . . . . . Critical Strikes 12 | . . . 1 . . . . 1 2 . 1 7 Actively Blocked 2 | . . . . . . . . . . . . 2 Damage Taken 5165 | . 46 614 156 92 69 64 42 199 429 . 163 3291 Core 1199 | . 11 130 . . 36 4 . 50 20 . . 948 Absorbed by Shields . | . . . . . . . . . . . . . Redirected to Shielding 541 | . . . . . . . . 5 9 . 75 452 Ignored by Resistances 166 | . . . . . . 7 14 30 115 . . . Core Remaining (%) 87 | 100 . 43 100 100 . . 95 . . . . . Volleys Fired 29 | 2 5 22 . . . . . . . . . . Largest 2 | 2 2 2 . . . . . . . . . . Hottest 70 | 60 60 70 . . . . . . . . . . Shots Fired 58 | 4 10 44 . . . . . . . . . . Gun 52 | 4 10 38 . . . . . . . . . . Cannon . | . . . . . . . . . . . . . Launcher 6 | . . 6 . . . . . . . . . . Special . | . . . . . . . . . . . . . Kinetic 23 | 2 5 16 . . . . . . . . . . Thermal 29 | 2 5 22 . . . . . . . . . . Explosive 6 | . . 6 . . . . . . . . . . Electromagnetic . | . . . . . . . . . . . . . Robot Hit Streak 13 | 1 2 13 . . . . . . . . . . Robot Miss Streak 3 | 1 3 3 . . . . . . . . . . Penetration Max . | . . . . . . . . . . . . . Secondary Targets . | . . . . . . . . . . . . . Shots Hit Robots 72 | 2 5 30 5 5 6 . 1 5 4 . 2 7 Core Hits 31 | 2 2 11 3 2 1 . 1 4 2 . . 3 Critical Kills . | . . . . . . . . . . . . . Critical Parts Destroyed . | . . . . . . . . . . . . . Critical Strikes 4 | . . . 1 1 . . . . 1 . 1 . Sever 4 | . . . 1 1 . . . . 1 . 1 . Melee Attacks 65 | . . 9 8 11 7 . 1 13 5 . 2 9 Impact . | . . . . . . . . . . . . . Slashing 61 | . . 9 8 11 4 . 1 13 4 . 2 9 Piercing . | . . . . . . . . . . . . . Sneak Attacks 8 | . . . . 1 3 . . 3 1 . . . Combat Hostiles 1 | . . . . . . . . 1 . . . . Follow-up Attacks 1 | . . . . . . . . 1 . . . . Damage Inflicted 1826 | 32 54 486 199 208 140 . 33 272 94 . 60 248 Guns 428 | 32 54 342 . . . . . . . . . . Cannons . | . . . . . . . . . . . . . Explosions 144 | . . 144 . . . . . . . . . . Melee 1254 | . . . 199 208 140 . 33 272 94 . 60 248 Ramming . | . . . . . . . . . . . . . Kinetic 224 | 11 34 179 . . . . . . . . . . Thermal 204 | 21 20 163 . . . . . . . . . . Explosive 144 | . . 144 . . . . . . . . . . Electromagnetic . | . . . . . . . . . . . . . Impact . | . . . . . . . . . . . . . Slashing 1254 | . . . 199 208 140 . 33 272 94 . 60 248 Piercing . | . . . . . . . . . . . . . Highest Corruption 19 | . . . . . . . . . . . . 19 Average Corruption 13 | . . . . . . . . . . . . 13 Corruption Purged . | . . . . . . . . . . . . . Corruption Blocked . | . . . . . . . . . . . . . Effects 8 | . . . . . . . . . . . . 8 Message Errors 1 | . . . . . . . . . . . . 1 Matter Fused 3 | . . . . . . . . . . . . 3 Heat Flow Errors 1 | . . . . . . . . . . . . 1 Parts Rejected 1 | . . . . . . . . . . . . 1 Misdirections 2 | . . . . . . . . . . . . 2 Overload Shots . | . . . . . . . . . . . . . Overflow Damage 118 | . . 5 . 26 30 . . 51 . . . 6 Projectiles . | . . . . . . . . . . . . . Explosions 5 | . . 5 . . . . . . . . . . Melee 113 | . . . . 26 30 . . 51 . . . 6 Knockbacks . | . . . . . . . . . . . . . Impact . | . . . . . . . . . . . . . Kinetic . | . . . . . . . . . . . . . Secondary . | . . . . . . . . . . . . . Self-Inflicted Damage 13 | . . 13 . . . . . . . . . . Shots 1 | . . 1 . . . . . . . . . . Rammed . | . . . . . . . . . . . . . Targets Rammed . | . . . . . . . . . . . . . Kicked . | . . . . . . . . . . . . . Crushed . | . . . . . . . . . . . . . Highest Temperature 254 | . 24 . 14 3 7 7 . . . . . 254 Average Temperature 44 | . 16 . 14 2 5 5 . . . . . 86 Received Heat Transfer 719 | . 24 72 81 54 24 24 . 45 12 . 27 356 Siege Activations . | . . . . . . . . . . . . . Martial Activations . | . . . . . . . . . . . . . Shielding Activations . | . . . . . . . . . . . . . Robots Disrupted . | . . . . . . . . . . . . . Combat Hostiles . | . . . . . . . . . . . . . Robots Corrupted . | . . . . . . . . . . . . . Combat Hostiles . | . . . . . . . . . . . . . Parts Fried . | . . . . . . . . . . . . . Impact Corruptions . | . . . . . . . . . . . . . Robots Melted . | . . . . . . . . . . . . . Combat Hostiles . | . . . . . . . . . . . . . Parts Melted . | . . . . . . . . . . . . . Heat Transferred 475 | 50 50 375 . . . . . . . . . . Parts Sabotaged . | . . . . . . . . . . . . . Parts Stolen . | . . . . . . . . . . . . . Parts Stripped . | . . . . . . . . . . . . . Power Chain Reactions . | . . . . . . . . . . . . . Alert | -11 -10 -10 -8 -7 -6 -6 -6 -5 -5 -5 -5 -4 ------- Run | Yrd Mat Sub Mat Fac Fac Low Low Fac Upp Upp War Pro Maximum Alert Level 1 | . . . 1 1 . . . . . . . . Low Security (%) 97 | 100 100 . 88 99 100 . . 100 . . . . Level 1 2 | . . . 11 . . . . . . . . . Level 2 . | . . . . . . . . . . . . . Level 3 . | . . . . . . . . . . . . . Level 4 . | . . . . . . . . . . . . . Level 5 . | . . . . . . . . . . . . . High Security . | . . . . . . . . . . . . . Max Security . | . . . . . . . . . . . . . Peak Influence 253 | 10 30 . 253 195 95 . . 107 . . . . Initial 114 | . 6 . . 114 95 . . 25 . . . . Average 66 | 1 6 . 111 112 68 . . 27 . . . . Influence Increases 2014 | 10 30 169 441 211 66 15 80 167 200 75 120 430 Destroy 0b10 Robot/C 440 | . 20 80 200 20 . . 20 20 20 . . 60 Destroy 0b10 Robot/NC 40 | 10 . . 5 10 5 . . 10 . . . . Destroy Leader 104 | . 10 10 62 10 . . . 2 . . . 10 Allied During Kill 31 | . . 4 27 . . . . . . . . . Successful Hack 29 | . . . 16 10 . . . 3 . . . . Disable Machine 45 | . . . 15 30 . . . . . . . . Destroy Structure 140 | . . . 101 26 1 . . 12 . . . . Partial Spotted 135 | . . . 15 45 15 . . 60 . . . . Lose Combat Pursuer 1050 | . . 75 . 60 45 15 60 60 180 75 120 360 Influence Decreases 1894 | . 40 169 188 269 240 36 40 100 211 109 173 319 Entered New Map 398 | . 4 . . 139 100 9 . 15 41 19 62 9 Time Decay 1237 | . 36 158 130 130 140 27 40 85 160 90 111 130 Lost Part 200 | . . 10 . . . . . . 10 . . 180 Lost Ally 59 | . . 1 58 . . . . . . . . . Squads Dispatched 9 | . 3 . . 3 1 . . 1 . . . 1 Investigation 2 | . 1 . . 1 . . . . . . . . Extermination 2 | . . . . 1 . . . 1 . . . . Reinforcement 4 | . 2 . . 1 1 . . . . . . . Assault 1 | . . . . . . . . . . . . 1 Garrison . | . . . . . . . . . . . . . Intercept . | . . . . . . . . . . . . . Searches Triggered . | . . . . . . . . . . . . . Construction Impeded . | . . . . . . . . . . . . . Haulers Reinforced . | . . . . . . . . . . . . . Active Scanning Responses . | . . . . . . . . . . . . . Cargo Convoy Interrupts . | . . . . . . . . . . . . . Stealth | -11 -10 -10 -8 -7 -6 -6 -6 -5 -5 -5 -5 -4 --------- Run | Yrd Mat Sub Mat Fac Fac Low Low Fac Upp Upp War Pro Distress Signals 1 | . . . 1 . . . . . . . . . Communications Jammed 6 | . . . . 1 . . . 5 . . . . Distress Signals 6 | . . . . 1 . . . 5 . . . . Times Spotted 134 | . 3 14 7 10 9 1 7 8 15 4 20 36 Peak Tracking Total 15 | . 2 3 3 5 7 1 4 4 5 5 12 15 Tactical Retreats 31 | . . 4 . 2 1 1 4 2 6 1 3 7 Traps | -11 -10 -10 -8 -7 -6 -6 -6 -5 -5 -5 -5 -4 ------- Run | Yrd Mat Sub Mat Fac Fac Low Low Fac Upp Upp War Pro Traps Triggered 3 | . 1 1 . . . . . 1 . . . . Indirectly . | . . . . . . . . . . . . . Trap Hack Attempts . | . . . . . . . . . . . . . Triggered . | . . . . . . . . . . . . . Disarmed 4 | . . . . . 4 . . . . . . . Reprogrammed . | . . . . . . . . . . . . . Reused . | . . . . . . . . . . . . . Traps Extracted . | . . . . . . . . . . . . . Installed . | . . . . . . . . . . . . . Triggered . | . . . . . . . . . . . . . Machines | -11 -10 -10 -8 -7 -6 -6 -6 -5 -5 -5 -5 -4 ---------- Run | Yrd Mat Sub Mat Fac Fac Low Low Fac Upp Upp War Pro Machines Disabled 4 | . . 1 1 2 . . . . . . . . Max in Single Turn 1 | . . 1 . . . . . . . . . . Garrison Access 1 | . . . . . 1 . . . . . . . Machines Repaired . | . . . . . . . . . . . . . Machines Dismantled . | . . . . . . . . . . . . . Machines Sabotaged . | . . . . . . . . . . . . . Overloaded Fab Kills . | . . . . . . . . . . . . . Hacking | -11 -10 -10 -8 -7 -6 -6 -6 -5 -5 -5 -5 -4 --------- Run | Yrd Mat Sub Mat Fac Fac Low Low Fac Upp Upp War Pro Machines Accessed 30 | . 1 2 3 4 6 . . 4 . 1 9 . Terminals 11 | . . . 2 4 4 . . 1 . . . . Fabricators 2 | . . . . . 1 . . 1 . . . . Repair Stations . | . . . . . . . . . . . . . Recycling Units 1 | . 1 . . . . . . . . . . . Scanalyzers 1 | . . . . . . . . 1 . . . . Garrison Access 3 | . . . 1 . 1 . . 1 . . . . Total Hacks 94 | . 3 11 8 10 24 . . 10 . 6 22 . Successful 64 | . 2 11 1 4 14 . . 4 . 6 22 . Failed 29 | . 1 . 7 6 10 . . 5 . . . . Catastrophic 6 | . . . . 2 3 . . 1 . . . . Database Lockouts 1 | . . . . . . . . 1 . . . . Manual 24 | . . . 3 4 4 . . 6 . 1 6 . Terminals 41 | . . . 6 10 20 . . 5 . . . . Fabricators 2 | . . . . . 1 . . 1 . . . . Repair Stations . | . . . . . . . . . . . . . Recycling Units 3 | . 3 . . . . . . . . . . . Scanalyzers 2 | . . . . . . . . 2 . . . . Garrison Access 7 | . . . 2 . 3 . . 2 . . . . Terminal Hacks 57 | . . 11 . 4 12 . . 2 . 6 22 . Record 46 | . . 10 . 3 7 . . . . 6 20 . Open Door 2 | . . . . . . . . . . . 2 . Branch Access Points 2 | . . . . . 1 . . 1 . . . . Emergency Access Points 2 | . . . . . 1 . . 1 . . . . Alert Level 1 | . . . . . 1 . . . . . . . Locate Traps 1 | . . . . . 1 . . . . . . . Disarm Traps 1 | . . . . . 1 . . . . . . . Recall Reinforcements 1 | . . . . 1 . . . . . . . . Proto ID Catalog 1 | . . 1 . . . . . . . . . . Fabricator Hacks 1 | . . . . . . . . 1 . . . . Network Status 1 | . . . . . . . . 1 . . . . Repair Station Hacks . | . . . . . . . . . . . . . Recycling Unit Hacks 2 | . 2 . . . . . . . . . . . Report Inventory 1 | . 1 . . . . . . . . . . . Retrieve Components 1 | . 1 . . . . . . . . . . . Scanalyzer 1 | . . . . . . . . 1 . . . . Retrieve Study 1 | . . . . . . . . 1 . . . . Garrison Access Hacks 1 | . . . . . 1 . . . . . . . Seal Access 1 | . . . . . 1 . . . . . . . Unauthorized Hacks 2 | . . . 1 . 1 . . . . . . . Terminals 2 | . . . 1 . 1 . . . . . . . Assimilate 2 | . . . 1 . 1 . . . . . . . Fabricators . | . . . . . . . . . . . . . Repair Stations . | . . . . . . . . . . . . . Recycling Units . | . . . . . . . . . . . . . Scanalyzers . | . . . . . . . . . . . . . Garrison Access . | . . . . . . . . . . . . . Data Cores Recovered 2 | . . . . 1 1 . . . . . . . Used 1 | . . . . 1 . . . . . . . . Hacking Detections 16 | . 1 . 3 4 5 . . 3 . . . . Full Trace Events 1 | . . . . 1 . . . . . . . . Feedback Events . | . . . . . . . . . . . . . Feedback Blocked . | . . . . . . . . . . . . . Robot Schematics Acquired . | . . . . . . . . . . . . . Robots Built . | . . . . . . . . . . . . . Authchips . | . . . . . . . . . . . . . Time . | . . . . . . . . . . . . . Total Robot Build Rating . | . . . . . . . . . . . . . Part Schematics Acquired . | . . . . . . . . . . . . . Parts Built . | . . . . . . . . . . . . . Authchips . | . . . . . . . . . . . . . Time . | . . . . . . . . . . . . . Total Part Build Rating . | . . . . . . . . . . . . . Part Studies Acquired 1 | . . . . . . . . 1 . . . . Parts Repaired . | . . . . . . . . . . . . . Time . | . . . . . . . . . . . . . Parts Recycled . | . . . . . . . . . . . . . Recycled Matter . | . . . . . . . . . . . . . Retrieved Matter . | . . . . . . . . . . . . . Retrieved Components 2 | . 2 . . . . . . . . . . . Parts Scanalyzed . | . . . . . . . . . . . . . Part Schematics Acquired . | . . . . . . . . . . . . . Parts Damaged . | . . . . . . . . . . . . . Bothacking | -11 -10 -10 -8 -7 -6 -6 -6 -5 -5 -5 -5 -4 ------------ Run | Yrd Mat Sub Mat Fac Fac Low Low Fac Upp Upp War Pro Used RIF Installer . | . . . . . . . . . . . . . Robots Hacked 2 | . . . . . 1 . . . 1 . . . Non-combat 2 | . . . . . 1 . . . 1 . . . Combat . | . . . . . . . . . . . . . Robot Hacks Applied 2 | . . . . . 1 . . . 1 . . . parse_system 1 | . . . . . . . . . 1 . . . find_fabricator 1 | . . . . . 1 . . . . . . . Relay Couplers Released . | . . . . . . . . . . . . . Fabnet Peak Effective % . | . . . . . . . . . . . . . Robots Rewired . | . . . . . . . . . . . . . Allies Hacked . | . . . . . . . . . . . . . Hacks Repelled . | . . . . . . . . . . . . . Allies | -11 -10 -10 -8 -7 -6 -6 -6 -5 -5 -5 -5 -4 -------- Run | Yrd Mat Sub Mat Fac Fac Low Low Fac Upp Upp War Pro Total Allies 11 | . . 9 . . . . . . . 2 . . Largest Group 6 | . . 6 5 1 . . . . . 2 . . Highest-Rated Group 112 | . . 112 95 19 . . . . . 50 . . Highest-Rated Ally 25 | . . 19 19 19 . . . . . 25 . . Total Orders . | . . . . . . . . . . . . . Ally Attacks 49 | . . 12 36 1 . . . . . . . . Total Damage 1404 | . . 199 956 249 . . . . . . . . Kills 11 | . . 1 8 2 . . . . . . . . Allies Corrupted . | . . . . . . . . . . . . . Allies Melted . | . . . . . . . . . . . . . Intel | -11 -10 -10 -8 -7 -6 -6 -6 -5 -5 -5 -5 -4 ------- Run | Yrd Mat Sub Mat Fac Fac Low Low Fac Upp Upp War Pro Active Infowar (turns) 1211 | 3 137 6 . 140 266 310 189 66 . . 20 74 Terrain 6 | . . 6 . . . . . . . . . . Seismic 140 | 3 137 . . . . . . . . . . . Cloaking 94 | . . . . . . . . . . . 20 74 Jamming 971 | . . . . 140 266 310 189 66 . . . . Robot Analysis Total . | . . . . . . . . . . . . . Derelict Logs Recovered 6 | . . 2 . . . 2 1 . 1 . . . Drone Launches . | . . . . . . . . . . . . . Drone Recoveries . | . . . . . . . . . . . . . Exploration | -11 -10 -10 -8 -7 -6 -6 -6 -5 -5 -5 -5 -4 ------------- Run | Yrd Mat Sub Mat Fac Fac Low Low Fac Upp Upp War Pro Turns Passed 7082 | 71 186 3400 297 276 284 310 189 268 326 185 1003 287 Spaces Moved 9322 | 43 104 1916 316 499 535 734 412 582 843 340 2528 470 Core 525 | 7 . 447 . . . . . . . . . 71 Treads . | . . . . . . . . . . . . . Legs 1549 | 36 104 1409 . . . . . . . . . . Wheels 60 | . . 60 . . . . . . . . . . Hover 98 | . . . . . . . . . . . . 98 Flight 7090 | . . . 316 499 535 734 412 582 843 340 2528 301 Fastest Speed 37 | 50 120 110 40 40 40 40 40 37 37 37 37 37 Average Speed 65 | 120 120 162 40 40 40 40 40 37 37 37 37 51 Slowest Speed 250 | 150 120 250 40 40 80 40 40 37 37 37 37 100 Overloaded Moves . | . . . . . . . . . . . . . Propulsion Burnouts . | . . . . . . . . . . . . . Robots Hopped 9 | . . . . . . 1 . . . . 8 . Potential Cave-ins 3 | . . . . . . . . . . . 3 . Cave-ins Triggered . | . . . . . . . . . . . . . Exploration Rate (%) 48 | 3 22 89 30 16 20 96 52 15 89 54 97 53 Regions Visited 12 Branch Regions 7 Pre-discovered Areas 1 | . . . . . . . . . 1 . . . Known Exits Taken 11 | . 1 1 1 1 1 1 1 1 1 1 1 . Unknown Exits Taken 1 | 1 . . . . . . . . . . . . Scrap Searched 4 | . . 2 . . . 1 . . . 1 . . Spaces Dug 18 | . . 6 . 5 1 . . 6 . . . . Terrain Destroyed 46 | . . 34 . 5 1 . . 6 . . . . Melee 12 | . . . . 5 1 . . 6 . . . . Projectile . | . . . . . . . . . . . . . AOE 34 | . . 34 . . . . . . . . . . Terrain Rammed . | . . . . . . . . . . . . . Walls Destroyed . | . . . . . . . . . . . . . Machines Disabled . | . . . . . . . . . . . . . Actions | -11 -10 -10 -8 -7 -6 -6 -6 -5 -5 -5 -5 -4 --------- Run | Yrd Mat Sub Mat Fac Fac Low Low Fac Upp Upp War Pro Total 10124 | 58 154 2139 475 559 601 749 434 616 850 398 2588 503 Wait 552 | . 40 151 126 34 35 15 22 9 2 59 40 19 Move 9296 | 42 103 1915 315 498 534 731 411 581 842 339 2515 470 Hop 5 | . . . . . . 1 . . . . 4 . Pick Up 73 | 7 5 15 10 7 12 1 . 4 . . 12 . Fast Attach . | . . . . . . . . . . . . . Attach 41 | 7 . 6 4 6 2 . . 4 1 . 6 5 Detach 2 | . . . 2 . . . . . . . . . Swap 19 | . 1 8 4 . 2 . . 4 . . . . Drop 44 | . . 13 6 3 9 1 . 3 . . 9 . Fire 29 | 2 5 22 . . . . . . . . . . Melee 63 | . . 9 8 11 7 . 1 11 5 . 2 9 Ram . | . . . . . . . . . . . . . Kick . | . . . . . . . . . . . . . Crush . | . . . . . . . . . . . . . Escape Stasis . | . . . . . . . . . . . . . Rewire . | . . . . . . . . . . . . . Trap . | . . . . . . . . . . . . . Miscellaneous . | . . . . . . . . . . . . . Route ------- -11/Scrapyard -10/Materials -10/Subcaves (discovered 3 exits: *Mat x2 / *Rec) -8/Materials (discovered 2 exits: *Fac / Sto) -7/Factory -6/Factory (discovered 2 exits: *Low x2) -6/Lower Caves -6/Lower Caves -5/Factory (discovered 4 exits: *Upp x2 / Ext x2) -5/Upper Caves -5/Upper Caves -5/Warlord -4/Proximity Caves History --------- Turn | Location | Event 10 | -11/Scrapyard | Discovered new exit (range 16) 72 | -11/Scrapyard | Entered Materials 253 | -10/Materials | Discovered new exit (range 6) 256 | -10/Materials | Identified exit to Subcaves 258 | -10/Materials | Entered Subcaves 311 | -10/Subcaves | Build established: Mutant 653 | -10/Subcaves | Learned Materials garrison access intel 904 | -10/Subcaves | Shifting Twisted Machinery released Mak. Thermal Plating 906 | -10/Subcaves | Shifting Twisted Machinery released Sub. Shrapnel Launcher 918 | -10/Subcaves | A swath of the cavern ceiling suddenly collapsed 941 | -10/Subcaves | Visited Clippyterm 945 | -10/Subcaves | Identified exit to Recycling 945 | -10/Subcaves | Identified exit to Materials 1173 | -10/Subcaves | Curiously followed by a Cobbler waking with a query about "LVR3C" 1403 | -10/Subcaves | Visited 4L-MR0's lab 1435 | -10/Subcaves | Found Prototype Special Melee Weapon 1471 | -10/Subcaves | Found Flightbrick 1565 | -10/Subcaves | Visited triangular shrine 1576 | -10/Subcaves | Found Prototype Device 1586 | -10/Subcaves | Identified V3-11A's Pendant 1591 | -10/Subcaves | Befriended Subdweller 1621 | -10/Subcaves | Befriended Subdweller 1621 | -10/Subcaves | Befriended Subdweller 1836 | -10/Subcaves | Befriended Subdweller 2059 | -10/Subcaves | A swath of the cavern ceiling suddenly collapsed 2636 | -10/Subcaves | Befriended Subdweller 2636 | -10/Subcaves | Befriended Subdweller 2636 | -10/Subcaves | Core integrity fell below 50% 2666 | -10/Subcaves | Befriended Subdweller 2671 | -10/Subcaves | Befriended Subdweller 2817 | -10/Subcaves | Shifting Twisted Machinery released Multitool 2860 | -10/Subcaves | Shifting Twisted Machinery released Sub. Machine Gun 2939 | -10/Subcaves | Shifting Twisted Machinery released Battle Cannon 2970 | -10/Subcaves | Learned 2 Materials zone layouts 3266 | -10/Subcaves | Befriended Subdweller 3658 | -10/Subcaves | Entered Materials 3658 | -8/Materials | Accompanied by 5 allies 3658 | -8/Materials | Evolved 4 slots: Propulsion x2, Utility x2 3659 | -8/Materials | Identified exit to Storage 3660 | -8/Materials | Loaded intel: 1 garrison access location 3660 | -8/Materials | Attached Flightbrick, gained temporary slots: Utility x3 3901 | -8/Materials | Discovered new exit (range 15) 3906 | -8/Materials | Identified exit to Factory 3955 | -8/Materials | Entered Factory 3955 | -7/Factory | Accompanied by 1 ally 3955 | -7/Factory | Evolved 2 slots: Power x1, Utility x1 4227 | -7/Factory | Discovered new exit (range 5) 4230 | -7/Factory | Identified exit to Factory 4231 | -7/Factory | Entered another Factory area 4231 | -6/Factory | Evolved 2 slots: Utility x2 4390 | -6/Factory | Identified exit to Lower Caves 4426 | -6/Factory | Build established: Hacker-Mutant 4515 | -6/Factory | Entered Lower Caves 4534 | -6/Lower Caves | Attracted the attention of an 0b10 checkpoint 4581 | -6/Lower Caves | Learned Factory terminal intel 4667 | -6/Lower Caves | Discovered new exit (range 13) 4689 | -6/Lower Caves | Identified exit to Lower Caves 4825 | -6/Lower Caves | Entered another Lower Caves area 4841 | -6/Lower Caves | Discovered new exit (range 8) 4844 | -6/Lower Caves | Identified exit to Factory 4869 | -6/Lower Caves | Spotted B-75 Beast 4912 | -6/Lower Caves | Learned Factory garrison access intel 4930 | -6/Lower Caves | Encountered a Warlord checkpoint 4953 | -6/Lower Caves | Attracted the attention of an 0b10 outpost 5014 | -6/Lower Caves | Entered Factory 5014 | -5/Factory | Evolved 2 slots: Propulsion x1, Weapon x1 5015 | -5/Factory | Identified exit to Extension 5016 | -5/Factory | Loaded intel: 28 terminal locations 5017 | -5/Factory | Loaded intel: 4 garrison access locations 5084 | -5/Factory | Central database locked down 5134 | -5/Factory | Identified exit to Upper Caves 5282 | -5/Factory | Entered Upper Caves 5295 | -5/Upper Caves | Learned location of Armory (-4) 5366 | -5/Upper Caves | Spotted B-75 Beast 5401 | -5/Upper Caves | Encountered a Warlord checkpoint 5456 | -5/Upper Caves | Attracted the attention of an 0b10 checkpoint 5568 | -5/Upper Caves | Discovered new exit (range 16) 5574 | -5/Upper Caves | Identified exit to Upper Caves 5608 | -5/Upper Caves | Entered another Upper Caves area 5647 | -5/Upper Caves | A Commander dispatched an escort 5648 | -5/Upper Caves | Learned location of 1 exit from Research 5648 | -5/Upper Caves | Learned Extension stockpile data 5731 | -5/Upper Caves | Discovered new exit (range 9) 5735 | -5/Upper Caves | Identified exit to Warlord 5793 | -5/Upper Caves | Entered Warlord 5793 | -5/Warlord | Accompanied by 2 allies 5794 | -5/Warlord | Commander's escort returned to base 5794 | -5/Warlord | Commander's escort returned to base 5840 | -5/Warlord | Learned Factory terminal intel 5840 | -5/Warlord | Learned Research terminal intel 5840 | -5/Warlord | Learned Research repair station intel 5840 | -5/Warlord | Learned Research recycling unit intel 5840 | -5/Warlord | Learned Quarantine trap positions 5957 | -5/Warlord | Met Warlord 5982 | -5/Warlord | Warlord's base attacked by MAIN.C 6099 | -5/Warlord | Opened side exit 6332 | -5/Warlord | Warlord forces counterattacked 6617 | -5/Warlord | Spotted Executioner 6657 | -5/Warlord | Warlord base infiltrated, sounded retreat 6749 | -5/Warlord | Discovered new exit (range 13) 6782 | -5/Warlord | Spotted B-86 Titan 6795 | -5/Warlord | Identified exit to Proximity Caves 6796 | -5/Warlord | Entered Proximity Caves 6798 | -4/Proximity Caves | Attracted the attention of an 0b10 outpost 6848 | -4/Proximity Caves | Spotted B-86 Titan 6943 | -4/Proximity Caves | System corruption reached 10% 6959 | -4/Proximity Caves | Lost 9 parts (1p1n4u3w) 7028 | -4/Proximity Caves | Core integrity fell below 50% 7063 | -4/Proximity Caves | Core integrity fell below 20% 7083 | -4/Proximity Caves | Destroyed by P-70 Sage with High-powered Shock Rifle Last Messages --------------- 07016_ Imp. Utility Shielding destroyed. 07017_ Slug penetrates G-73 Enforcer. 07017_ Slug penetrates Wall. 07018_ P-70 Sage resets S-27 Virus, system corruption cleaned. 07020_ B-60 Warrior suffers critical hit (Burn). 07023_ Imp. Utility Shielding destroyed. 07025_ Slug penetrates Wall. 07026_ M-36 Artificer repairs G-73 Enforcer. 07026_ Cmb. Linear Gravjet destroyed. 07027_ Cmb. Gravmag System destroyed. 07028_ System corrupted: Matter fused (-7). 07030_ Hacking Suite destroyed. 07039_ Slug penetrates Wall. 07042_ Penetrated by Slug. 07058_ Sml. Storage Unit destroyed. 07059_ System corrupted: Gravity Neutralizer rejected. 07066_ Slug penetrates Earth. 07066_ Slug penetrates P-70 Sage. Map ----- +----------------------------------------------------+ | | | | | | | | | | | | | | | | | ?????????????????????????????????????????????????? | | ?????????????????????????????????????????????????? | | ?????????????????????????????????????????????????? | | ?????????????????????????????????????????????????? | | ?????????????????????????????????????????????????? | | ?????????????????????????????????????????????????? | | ?????????????????????????????????????????????????? | | ?????????????????????????????????????????????????? | | ?????????????????????????????????????????????????? | | ?????????????????????????????????????????????????? | | ?????????????????????????????????????????????????? | | ?????????????????????????????????????????????????? | | ?????????????????????????????????????????????????? | | ?????????????????????????????????????????????????? | | ????????????####?#########???????????????????????? | | ???????????## ## ## p##??????????????????????? | | ????????#?## s #??????????????????????? | | ????????# # # # #@#??????????????????????? | | #???????# # # #####??????????????????????? | | ##??????#### #####??????????????????????????? | | ##????????## ##?????????????????????????????? | | #?????????# # #?????????????????????????????? | | ##???###???# # ##???????????????????????????? | | ##????# ##### ##??????????????????????????? | | #????## # #?????????????????????? | | ##???# # # # #??????????????????????? | | #### # ## #??????????????????????? | | ## # # ##?? #??????????????????????? | | ### ##???? #??????????????????????? | | # # #?## #??????#??????????????????????? | | # ##??? # ???????????????????????????? | | #???? # ?????????????????????????? | | #### ##????# # # ?????????????????????????? | | ######?????## # # ????????????????????????? | | # ##?????? ??????????????????????????? | | ## ##????? # ??????????????????????????? | | ?# #! #????? ???????????????????????????? | | ?### # #?????? ##????????????????????????????? | | ???## #??????????????????????????????????????? | | ##??# ##??????????????????????????????????????? | | #??# #???????????????????????????????????????? | | #?## ##???????????????????????????????????????? | +----------------------------------------------------+ Best States ------------- Heat Dissipation 40 Energy Generation 26 Energy Capacity 380 Matter Stores 300 Matter Capacity 300 Sight Range 16 Terrain Scan Range 14 Terrain Scan Density 10 Jamming Range 12 Cloak Strength 3 Additional Mass Support 12 Armor Coverage 300 Resistance: KI 20 Core Shielding 20 Propulsion Shielding 66 Utility Shielding 66 Evasion (%) 62 Offensive Hacking 20 Defensive Hacking 10 Item Schematics ----------------- None Robot Schematics ------------------ None Fabricated ------------ Nothing Repaired ---------- Nothing Studied --------- Katana | -5/Factory | Hacked Alien Tech Used ----------------- None Achievements -------------- A Powerful Ally? Charge!!! Cya! Dynamic Key Knowing Is Half The Battle Mistaken Identity SUBSUB The More The Merrier Challenges ------------ None Game ------ Seed CobblerProjectionTracker Manual? 0 Play Time 02:03:38 Cumulative 13.4 hours Start 2026.02.18 @ 22:35:11 End 2026.02.19 @ 00:50:18 Sessions 1 Manual Loads 0 Difficulty Rogue Special Mode None Game No. 17 Rogue 17 Adventurer 0 Explorer 0 Win Type - Total 0 Types 0/0/0/0/0/0/0/0/0/0 Lore% 21 Gallery% 21 Achievement% 16 Wizard Run 0 Options --------- Layout 1 ASCII 0 Keyboard 0 Movement Mouse Keybinds 0 Fullscreen 1 Font 24/Swanston Map View 50x35 Zoom Use 0% Tactical HUD 1 Map Filters NONE Filters NONE Steam 1 RUN: 698c86ab-9324-416c-a476-a487703f7b5c